Cogmind - Beta 12 @@@ ROGUE MODE // 2023.03.29 @ 00:18:04 Player: Azktor Result: Self-destructed Performance ------------- Evolutions (1) 500 Regions Visited (5) 1000 Robots Destroyed (56) 280 Value Destroyed (1457) 1457 Prototype IDs (3) 60 Alien Tech Used (0) 0 Bonus (40) 40 TOTAL SCORE: 3337 Bonus ------- Follower Combat Kills 40 Cogmind --------- Core Integrity 256/400 Matter 300/300 Energy 265/265 System Corruption 0% Temperature Cool (0) Movement Treading (240) Ox1 Location -9/Exiles Parts ------- > --- POWER (1) -------- Improved Ion Engine > --- PROPULSION (3) --- Light Treads Improved Treads Improved Treads > --- UTILITY (3) ------ Improved Heat Sink Huge Storage Unit Signal Interpreter > --- WEAPON (2) ------- Ion Cannon Enhanced Autogun > --- INVENTORY (25) --- Ion Engine Light Treads Light Treads Medium Storage Unit Signal Interpreter Improved Terrain Scanner Core Shielding Light EM Pulse Cannon Ion Cannon Ion Cannon Ion Cannon Heavy Assault Rifle Heavy Assault Rifle Enhanced Autogun Mini Grenade Launcher Mining Laser Peak State ------------ > --- POWER ------------ Improved Ion Engine > --- PROPULSION ------- Light Treads Improved Treads Improved Treads > --- UTILITY ---------- Improved Heat Sink Huge Storage Unit Signal Interpreter > --- WEAPON ----------- Ion Cannon Enhanced Autogun > --- INVENTORY -------- Ion Engine Light Treads Light Treads Medium Storage Unit Signal Interpreter Improved Terrain Scanner Core Shielding Light EM Pulse Cannon Ion Cannon Ion Cannon Ion Cannon Heavy Assault Rifle Heavy Assault Rifle Enhanced Autogun Mini Grenade Launcher Mining Laser [Rating: 22] Favorites ----------- Power Improved Ion Engine Engine Improved Ion Engine Propulsion Light Treads Treads Light Treads Utility Huge Storage Unit Device Improved Heat Sink Storage Huge Storage Unit Processor Signal Interpreter Hackware System Shield Protection Core Shielding Weapon Heavy Assault Rifle Energy Gun Particle Gun Energy Cannon Ion Cannon Ballistic Gun Heavy Assault Rifle Ballistic Cannon Improved Light Cannon Build | -11 -10 -10 -9 -9 -9 ------- Run | Jun Mat Min Mat Min Exi Slots Evolved 2 | . . . 2 . . Power . | . . . . . . Propulsion 1 | . . . 1 . . Utility 1 | . . . 1 . . Weapon . | . . . . . . Parts Attached 47 | 9 14 7 17 . . Power 8 | 1 3 3 1 . . Engine 8 | 1 3 3 1 . . Core . | . . . . . . Reactor . | . . . . . . Propulsion 14 | 2 3 2 7 . . Treads 14 | 2 3 2 7 . . Leg . | . . . . . . Wheel . | . . . . . . Hover . | . . . . . . Flight . | . . . . . . Utility 8 | 2 3 . 3 . . Device 3 | 1 . . 2 . . Storage 2 | 1 1 . . . . Processor 1 | . 1 . . . . Hackware 1 | . . . 1 . . Protection 1 | . 1 . . . . Artifact . | . . . . . . Weapon 17 | 4 5 2 6 . . Energy Gun 1 | . . 1 . . . Energy Cannon 3 | . . . 3 . . Ballistic Gun 12 | 4 4 1 3 . . Ballistic Cannon 1 | . 1 . . . . Launcher . | . . . . . . Special Weapon . | . . . . . . Impact Weapon . | . . . . . . Slashing Weapon . | . . . . . . Piercing Weapon . | . . . . . . Special Melee Weapon . | . . . . . . Unidentified Prototypes 1 | . . . 1 . . Parts Lost 4 | . 1 1 2 . . Power . | . . . . . . Propulsion 1 | . . 1 . . . Utility 1 | . . . 1 . . Weapon 2 | . 1 . 1 . . Highest Loss Streak 1 | . 1 1 1 . . To Critical Strikes . | . . . . . . Average Slot Usage (%) 99 | . 99 99 98 100 100 Engine 12 | . 14 14 10 11 11 Treads 29 | . 28 27 32 33 33 Device 4 | . 5 . 6 11 11 Storage 12 | . 14 14 11 11 11 Processor 8 | . 1 14 11 11 11 Protection 2 | . 6 . . . . Energy Gun 4 | . . 13 1 . . Energy Cannon 3 | . . . 9 11 11 Ballistic Gun 14 | . 18 14 10 11 11 Ballistic Cannon 3 | . 9 . . . . Naked Turns . | . . . . . . Heaviest Build 97 | 13 93 93 97 97 97 Greatest Support 66 | 40 40 40 66 66 66 Greatest Overweight (x) 4 | 2 2 4 2 1 1 Average Overweight (x) 1 | . 1 2 1 1 1 Largest Inventory Capacity 25 | 8 25 25 25 25 25 Average Capacity 22 | 7 19 25 25 25 25 Most Carried 19 | 4 13 16 19 16 16 Average Carried 12 | 1 9 11 15 16 16 Final Capacity 25 | 8 25 25 25 25 25 Final Carried 16 | 4 13 16 16 16 16 Class Distribution -------------------- 55% | Mutant 44% | Scavenger-Mutant Dominant Class ---------------- Mutant | -10/Materials Mutant | -10/Mines Scavenger-Mutant | -9/Materials Scavenger-Mutant | -9/Mines Scavenger-Mutant | -9/Exiles Resources | -11 -10 -10 -9 -9 -9 ----------- Run | Jun Mat Min Mat Min Exi Matter Collected 1514 | 302 328 434 394 56 . Remotely . | . . . . . . Salvage Created 2019 | 133 750 344 649 143 . Parts 111 | 9 43 20 34 5 . Haulers Intercepted 1 | . 1 . . . . Recyclers Shooed 3 | . 2 . 1 . . Parts Field Recycled . | . . . . . . Retrieved Matter . | . . . . . . Parts Self-Destructed . | . . . . . . Prevented . | . . . . . . Kills | -11 -10 -10 -9 -9 -9 ------- Run | Jun Mat Min Mat Min Exi Combat Hostiles Destroyed 46 | . 14 14 15 3 . Guns 32 | . 13 13 5 1 . Cannons 13 | . 1 1 9 2 . Classes Destroyed 11 | 2 6 2 1 . . Worker 1 | . 1 . . . . Tunneler 3 | 2 . 1 . . . Hauler 1 | . 1 . . . . Recycler 4 | 1 3 . . . . Operator 1 | . 1 . . . . Watcher 4 | . 2 . 2 . . Swarmer 11 | . 3 5 3 . . Grunt 23 | . 11 4 5 3 . Duelist 1 | . . . 1 . . Sentry 7 | . . 1 6 . . Assembled 4 | . . 4 . . . Best Kill Streak 3 | 2 3 3 3 3 . Combat Bots Only 3 | . 3 3 3 3 . Max Kills in Single Turn 2 | 1 2 2 1 2 . Gunslinging 1 | . . 1 . . . Exploded . | . . . . . . Melee . | . . . . . . Uniques/NPCs Destroyed . | . . . . . . Combat | -11 -10 -10 -9 -9 -9 -------- Run | Jun Mat Min Mat Min Exi Damage Taken 2207 | . 667 627 842 71 . Core 342 | . 104 94 130 14 . Absorbed by Shields . | . . . . . . Redirected to Shielding 5 | . 5 . . . . Regen/Repaired (Parts) 68 | . . . 68 . . Core Remaining (%) 60 | 100 . 20 . . . Volleys Fired 175 | 6 66 41 54 8 . Largest 2 | 2 2 2 2 2 . Hottest 88 | 40 62 88 88 85 . Shots Fired 348 | 12 132 81 107 16 . Gun 257 | 12 100 74 63 8 . Cannon 91 | . 32 7 44 8 . Launcher . | . . . . . . Special . | . . . . . . Kinetic 254 | 12 132 48 54 8 . Thermal 79 | . . 33 38 8 . Explosive . | . . . . . . Electromagnetic 15 | . . . 15 . . Robot Hit Streak 15 | 7 12 5 15 9 . Robot Miss Streak 5 | 1 4 4 5 4 . Penetration Max . | . . . . . . Secondary Targets 3 | . 2 1 . . . Max Gunslinging Chain 1 | . 1 1 . . . Shots Hit Robots 220 | 10 83 47 72 8 . Core Hits 84 | 6 29 22 21 6 . Critical Kills 1 | . . . 1 . . Critical Parts Destroyed . | . . . . . . Critical Strikes 1 | . . . 1 . . Meltdown 1 | . . . 1 . . Melee Attacks . | . . . . . . Impact . | . . . . . . Slashing . | . . . . . . Piercing . | . . . . . . Sneak Attacks . | . . . . . . Combat Hostiles . | . . . . . . Follow-up Attacks . | . . . . . . Damage Inflicted 3825 | 74 1386 752 1441 172 . Guns 2407 | 74 1019 656 577 81 . Cannons 1412 | . 367 90 864 91 . Explosions . | . . . . . . Melee . | . . . . . . Ramming 6 | . . 6 . . . Kinetic 2489 | 74 1386 478 470 81 . Thermal 1028 | . . 268 669 91 . Explosive . | . . . . . . Electromagnetic 302 | . . . 302 . . Impact . | . . . . . . Slashing . | . . . . . . Piercing . | . . . . . . Highest Corruption . | . . . . . . Average Corruption . | . . . . . . Corruption Purged . | . . . . . . Corruption Blocked . | . . . . . . Overload Shots . | . . . . . . Overflow Damage 43 | . 20 3 20 . . Projectiles 43 | . 20 3 20 . . Explosions . | . . . . . . Melee . | . . . . . . Knockbacks 7 | . 7 . . . . Impact . | . . . . . . Kinetic 6 | . 6 . . . . Secondary 1 | . 1 . . . . Self-Inflicted Damage . | . . . . . . Shots . | . . . . . . Rammed 1 | . . 1 . . . Targets Rammed 1 | . . 1 . . . Kicked . | . . . . . . Crushed . | . . . . . . Highest Temperature 498 | . 69 295 498 48 . Average Temperature 85 | . 18 90 115 18 . Received Heat Transfer 1075 | . 321 379 336 39 . Effects 6 | . . . 6 . . Shutdowns 1 | . . . 1 . . Interference 3 | . . . 3 . . Matter Decay 2 | . . . 2 . . Siege Activations . | . . . . . . Robots Corrupted . | . . . . . . Combat Hostiles . | . . . . . . Parts Fried 3 | . . . 3 . . Impact Corruptions . | . . . . . . Robots Melted 1 | . . . 1 . . Combat Hostiles 1 | . . . 1 . . Parts Melted 3 | . . . 3 . . Heat Transferred 1924 | . . 629 1147 148 . Parts Sabotaged . | . . . . . . Parts Stolen . | . . . . . . Parts Stripped . | . . . . . . Power Chain Reactions . | . . . . . . Missiles Intercepted . | . . . . . . Alert | -11 -10 -10 -9 -9 -9 ------- Run | Jun Mat Min Mat Min Exi Peak Influence 322 | 15 179 202 322 145 . Initial 73 | . 9 26 . 73 . Average 74 | 7 51 52 150 101 . Maximum Alert Level 1 | . . 1 1 . . Low Security (%) 92 | 100 100 91 74 100 . Level 1 7 | . . 8 25 . . Level 2 . | . . . . . . Level 3 . | . . . . . . Level 4 . | . . . . . . Level 5 . | . . . . . . High Security . | . . . . . . Max Security . | . . . . . . Squads Dispatched 4 | . 3 . 1 . . Investigation 1 | . 1 . . . . Extermination . | . . . . . . Reinforcement 3 | . 2 . 1 . . Assault . | . . . . . . Garrison . | . . . . . . Intercept . | . . . . . . Searches Triggered . | . . . . . . Construction Impeded . | . . . . . . Haulers Reinforced . | . . . . . . Active Scanning Responses . | . . . . . . Cargo Convoy Interrupts . | . . . . . . Stealth | -11 -10 -10 -9 -9 -9 --------- Run | Jun Mat Min Mat Min Exi Distress Signals 7 | . 2 . 5 . . Communications Jammed . | . . . . . . Distress Signals . | . . . . . . Times Spotted 73 | . 27 19 24 3 . Peak Tracking Total 5 | . 5 3 5 3 . Tactical Retreats 5 | . 1 3 1 . . Traps | -11 -10 -10 -9 -9 -9 ------- Run | Jun Mat Min Mat Min Exi Traps Triggered 1 | . 1 . . . . Indirectly . | . . . . . . Trap Hack Attempts . | . . . . . . Triggered . | . . . . . . Disarmed . | . . . . . . Reprogrammed . | . . . . . . Reused . | . . . . . . Traps Extracted . | . . . . . . Installed . | . . . . . . Triggered . | . . . . . . Machines | -11 -10 -10 -9 -9 -9 ---------- Run | Jun Mat Min Mat Min Exi Machines Disabled 1 | . 1 . . . . Max in Single Turn 1 | . 1 . . . . Machines Repaired . | . . . . . . Machines Sabotaged . | . . . . . . Overloaded Fab Kills . | . . . . . . Hacking | -11 -10 -10 -9 -9 -9 --------- Run | Jun Mat Min Mat Min Exi Machines Accessed 12 | . 6 . 6 . . Terminals 9 | . 4 . 5 . . Fabricators . | . . . . . . Repair Stations 1 | . . . 1 . . Recycling Units 2 | . 2 . . . . Scanalyzers . | . . . . . . Garrison Access . | . . . . . . Total Hacks 31 | . 12 . 19 . . Successful 14 | . 4 . 10 . . Failed 17 | . 8 . 9 . . Catastrophic 2 | . 1 . 1 . . Database Lockouts . | . . . . . . Manual 17 | . 5 . 12 . . Terminals 23 | . 7 . 16 . . Fabricators . | . . . . . . Repair Stations 3 | . . . 3 . . Recycling Units 5 | . 5 . . . . Scanalyzers . | . . . . . . Garrison Access . | . . . . . . Terminal Hacks 2 | . . . 2 . . Prototype ID Bank 1 | . . . 1 . . Zone Layout 1 | . . . 1 . . Fabricator Hacks . | . . . . . . Repair Station Hacks 2 | . . . 2 . . Scan Component 1 | . . . 1 . . Repair 1 | . . . 1 . . Recycling Unit Hacks 3 | . 3 . . . . Report Inventory 2 | . 2 . . . . Retrieve Components 1 | . 1 . . . . Scanalyzer . | . . . . . . Garrison Access Hacks . | . . . . . . Unauthorized Hacks 7 | . 1 . 6 . . Terminals 7 | . 1 . 6 . . Track 1 | . . . 1 . . Botnet 6 | . 1 . 5 . . Fabricators . | . . . . . . Repair Stations . | . . . . . . Recycling Units . | . . . . . . Scanalyzers . | . . . . . . Garrison Access . | . . . . . . Data Cores Recovered . | . . . . . . Used . | . . . . . . Hacking Detections 8 | . 3 . 5 . . Full Trace Events 1 | . 1 . . . . Feedback Events . | . . . . . . Feedback Blocked . | . . . . . . Robot Schematics Acquired . | . . . . . . Robots Built . | . . . . . . Authchips . | . . . . . . Time . | . . . . . . Total Robot Build Rating . | . . . . . . Part Schematics Acquired . | . . . . . . Parts Built . | . . . . . . Authchips . | . . . . . . Time . | . . . . . . Total Part Build Rating . | . . . . . . Parts Repaired 1 | . . . 1 . . Time 26 | . . . 26 . . Parts Recycled . | . . . . . . Recycled Matter . | . . . . . . Retrieved Matter . | . . . . . . Retrieved Components 9 | . 9 . . . . Parts Scanalyzed . | . . . . . . Part Schematics Acquired . | . . . . . . Parts Damaged . | . . . . . . Bothacking | -11 -10 -10 -9 -9 -9 ------------ Run | Jun Mat Min Mat Min Exi Used RIF Installer . | . . . . . . Robots Hacked . | . . . . . . Non-combat . | . . . . . . Combat . | . . . . . . Robot Hacks Applied . | . . . . . . Relay Couplers Released . | . . . . . . Fabnet Peak Effective % . | . . . . . . Robots Rewired . | . . . . . . Allies Hacked . | . . . . . . Hacks Repelled . | . . . . . . Allies | -11 -10 -10 -9 -9 -9 -------- Run | Jun Mat Min Mat Min Exi Total Allies 3 | . . 3 . . . Largest Group 3 | . . 3 . . . Highest-Rated Group 40 | . . 40 . . . Highest-Rated Ally 16 | . . 16 . . . Total Orders . | . . . . . . Ally Attacks 37 | . . 37 . . . Total Damage 326 | . . 326 . . . Kills 6 | . . 6 . . . Allies Corrupted . | . . . . . . Allies Melted . | . . . . . . Intel | -11 -10 -10 -9 -9 -9 ------- Run | Jun Mat Min Mat Min Exi Robot Analysis Total . | . . . . . . Derelict Logs Recovered 3 | . . 2 . 1 . Drone Launches . | . . . . . . Drone Recoveries . | . . . . . . Exploration | -11 -10 -10 -9 -9 -9 ------------- Run | Jun Mat Min Mat Min Exi Turns Passed 5323 | 127 1755 1588 899 483 471 Spaces Moved 1716 | 66 548 448 270 188 196 Core 15 | 15 . . . . . Treads 1701 | 51 548 448 270 188 196 Legs . | . . . . . . Wheels . | . . . . . . Hover . | . . . . . . Flight . | . . . . . . Fastest Speed 50 | 50 160 320 240 240 240 Average Speed 263 | 142 259 320 240 240 240 Slowest Speed 480 | 160 320 480 320 240 240 Overloaded Moves . | . . . . . . Propulsion Burnouts . | . . . . . . Robots Hopped . | . . . . . . Cave-ins Triggered . | . . . . . . Exploration Rate (%) 47 | 4 70 92 31 31 57 Regions Visited 5 Branch Regions 3 Pre-discovered Areas 2 | . . 1 . 1 . Known Exits Taken 4 | . 1 1 1 1 . Unknown Exits Taken 1 | 1 . . . . . Scrap Searched 2 | . . 1 . 1 . Spaces Dug . | . . . . . . Terrain Destroyed 6 | . 2 1 1 2 . Melee . | . . . . . . Projectile 6 | . 2 1 1 2 . AOE . | . . . . . . Terrain Rammed . | . . . . . . Walls Destroyed . | . . . . . . Machines Disabled . | . . . . . . Actions | -11 -10 -10 -9 -9 -9 --------- Run | Jun Mat Min Mat Min Exi Total 2191 | 86 753 520 428 208 196 Wait 183 | . 97 11 62 13 . Move 1711 | 65 547 447 269 187 196 Hop . | . . . . . . Pick Up 33 | 4 14 6 9 . . Fast Attach 37 | 9 10 5 13 . . Attach 6 | . 1 1 4 . . Detach . | . . . . . . Swap 4 | . 3 1 . . . Drop 41 | 2 15 7 17 . . Fire 175 | 6 66 41 54 8 . Melee . | . . . . . . Ram . | . . . . . . Kick . | . . . . . . Crush 1 | . . 1 . . . Escape Stasis . | . . . . . . Rewire . | . . . . . . Trap . | . . . . . . Miscellaneous . | . . . . . . Route ------- -11/Junkyard -10/Materials (discovered 4 exits: *Mat x2 / *Min x2) -10/Mines (discovered 2 exits: *Mat x2) -9/Materials (discovered 3 exits: Mat x2 / *Min) -9/Mines -9/Exiles (discovered 1 exit: *Min) History --------- Turn | Location | Event 18 | -11/Junkyard | Discovered new exit (range 16) 128 | -11/Junkyard | Entered Materials 304 | -10/Materials | Build established: Mutant 400 | -10/Materials | Discovered new exit (range 14) 695 | -10/Materials | Discovered new exit (range 9) 1698 | -10/Materials | Discovered new exit (range 4) 1712 | -10/Materials | Identified exit to Materials 1738 | -10/Materials | Discovered new exit (range 16) 1826 | -10/Materials | Identified exit to Mines 1883 | -10/Materials | Entered Mines 2000 | -10/Mines | Received a Rocket Launcher from a helpful Derelict 2017 | -10/Mines | Core integrity fell below 50% 2070 | -10/Mines | Discovered exit to Materials (range 7) 2108 | -10/Mines | Discovered exit to Materials (range 6) 2423 | -10/Mines | Learned location of 2 exits from Materials 2445 | -10/Mines | Assisted by bots powering up and referring to "LRC-V3" 3040 | -10/Mines | Assembled infested the area 3273 | -10/Mines | Build established: Scavenger-Mutant 3471 | -10/Mines | Entered Materials 3471 | -9/Materials | Evolved 2 slots: Propulsion x1, Utility x1 3472 | -9/Materials | Identified exit to Materials 3999 | -9/Materials | Repaired Lgt. Treads 4142 | -9/Materials | Discovered new exit (range 16) 4368 | -9/Materials | Identified exit to Mines 4370 | -9/Materials | Entered Mines 4446 | -9/Mines | Learned location of Storage (-7) 4719 | -9/Mines | Learned Materials emergency access door positions 4841 | -9/Mines | Deemed a non-threat by the Exiles lab entrance 4843 | -9/Mines | Discovered new exit (range 5) 4851 | -9/Mines | Identified exit to Exiles 4853 | -9/Mines | Entered Exiles 4853 | -9/Exiles | Found Exiles lab abandoned 4890 | -9/Exiles | Discovered new exit (range 15) 4921 | -9/Exiles | Identified exit to Mines 5324 | -9/Exiles | Self-destructed Last Messages --------------- 04448_ AC-W71(g) slips back into the shadows. 04489_ G-34 Mercenary destroyed. 04492_ G-47 Trooper destroyed. 04493_ Acquired 52 matter. 04494_ Acquired 4 matter. 04607_ K-01 Serf collects debris. 04719_ Acquired derelict log, extracted data. Data stored: Materials emergency access points. 04731_ Searching scrap... 04731_ Found Lgt. Treads. 04731_ Found Imp. Targeting Computer. 04731_ Found Authchip [Armor]. 04731_ Found 30 Matter. 04841_ "No threat detected, you may enter." 04843_ EXIT=FOUND 04851_ EXIT=IDENTIFIED: EXILES LOCATION=EXILES GOAL=ESCAPE 04890_ EXIT=FOUND 04921_ EXIT=IDENTIFIED: MINES Map ----- +----------------------------------------------------+ | ???????????????????????? ???????????# | | ?????????????????????? ??????????#" "X" | | ??????????????????????? ??????????#" """ | | ?????????????????????? ??????????#" """""" | | ???????????????????????" ?????????##" ####### | | ???????????????????????# #????????##"" #?????? | | ????????????#?###????### ###?######"" #?????? | | ???????????? """#####X# #"###""""""" ##????? | | ??????????? """""" " "" ##???# | | ??????????? "" """ " ##### | | ?????????? " " | | ??????????? | | ????????????# | | ?????????????# | | ??????????????# | | ???????????????#" | | ???????????????#""" """""" | | ??????????????##" ######""" | | ??????????????#"" ""##????#####""" | | ??????????????#""" """##?????????##""" | | ?????????????#""" """##???????????#"""" | | ?????????????#""" ""#????????????#"" | | ?????????????#"" ###???????????"""" | | ?????????????#""" ## #?????? | | ?????????????#"" ""??? | | ?????????????##"" @ ? | | ??????????????#"""" ? | | ??????????????## | | ???????????????#" " ?? "" | | ???????????????#"""" ""#??????"" " " | | ???????????????#"" ""##????????##""" | | ???????????????#" """"##????????????#" | | ????????????????""" """#??????????????? | | ???????????????## ""#???????????????? | | ????????????????#"" """#????????????????? | | ????????????????##""" ##????????????????? | | ?????????????????##"""" ##?????????????????? | | ????????????????????# #??????????????????? | | ??????????????????????### ##??????????????????? | | ?????????????????????????# #???????????????????? | | ?????????????????????????? ?????????????????????? | | ?????????????????????????????????????????????????? | | ?????????????????????????????????????????????????? | | ?????????????????????????????????????????????????? | | ?????????????????????????????????????????????????? | | ?????????????????????????????????????????????????? | | ?????????????????????????????????????????????????? | | ?????????????????????????????????????????????????? | | ?????????????????????????????????????????????????? | | ?????????????????????????????????????????????????? | +----------------------------------------------------+ Best States ------------- Heat Dissipation 42 Energy Generation 12 Energy Capacity 265 Matter Stores 300 Matter Capacity 300 Sight Range 16 Terrain Scan Range 16 Terrain Scan Density 10 Core Shielding 20 Evasion (%) 40 Recoil Reduction 3 Defensive Hacking 10 Item Schematics ----------------- None Robot Schematics ------------------ None Fabricated ------------ Nothing Alien Tech Used ----------------- None Achievements -------------- None Challenges ------------ None Game ------ Seed ScatterEncryptedScrap Manual? 0 Play Time 00:29:43 Cumulative 200.2 hours Start 2023.03.28 @ 23:48:51 End 2023.03.29 @ 00:18:04 Sessions 1 Manual Loads 0 Difficulty Rogue Special Mode None Game No. 72 Rogue 9 Adventurer 63 Explorer 0 Win Type - Total 8 Types 4/2/0/2/0/0/0/0/0 Lore% 54 Gallery% 72 Achievement% 61 Wizard Run 0 Options --------- ASCII 0 Keyboard 0 Movement Mouse Keybinds 0 Fullscreen 1 Font 18/Terminus Map View 76x50 Tactical HUD 1 Map Filters NONE Filters NONE Steam 1 RUN: 6aa977aa-0df8-40b6-8a44-68a91c6678cf